bitfinex/quotes_SOLUSD_20220210
["timestamp","ask_amount","ask_price","bid_price","bid_amount"]
[1644525307744,52.05154212,109.06,108.99,0.024]
[1644525307942,4.586,109.05,108.99,0.024]
[1644525308143,27.2613,109.05,108.97,0.024]
[1644525308543,27.2613,109.05,108.97,16.45032747]
[1644525308745,39.30602041,109.04,108.98,41.03634773]
[1644525308947,39.30602041,109.04,108.99,10.79]
[1644525309143,39.30602041,109.04,108.98,54.80104773]
[1644525309945,4.586,109.09,108.98,54.80104773]
[1644525310147,4.586,109.09,108.99,0.024]
[1644525310947,37.70479834,109.08,108.99,0.024]
[1644525311150,4.585,109.07,108.99,0.024]
[1644525311349,34.72877142,109.06,108.99,0.024]
[1644525312552,40.72877142,109.06,108.99,13.7876]
[1644525312751,40.72877142,109.06,109.0,47.94695212]
[1644525313352,6.0,109.06,109.0,47.94695212]
[1644525313553,24.7331,109.07,109.0,47.94695212]
[1644525313753,22.5593,109.1,109.0,61.98295212]
[1644525313955,22.5593,109.1,109.01,0.024]
[1644525314351,24.7755,109.12,109.02,10.79]
[1644525314556,1.28949961,109.14,109.03,0.024]
[1644525314751,1.28949961,109.14,109.04,10.79]
[1644525314951,1.28949961,109.16,109.05,0.024]
[1644525315153,1.28949961,109.18,109.06,10.79]
[1644525315452,42.29091267,109.19,109.07,48.76010343]
[1644525315653,1.28949961,109.19,109.08,10.79]
[1644525315853,1.28949961,109.19,109.08,49.12237152]
[1644525316252,1.28949961,109.2,109.09,1.78351012]
[1644525316452,1.28949961,109.2,109.12,13.7449]
[1644525316655,41.30380969,109.19,109.13,35.76400764]
[1644525316853,47.30380969,109.19,109.1,10.79]
[1644525317057,53.1743093,109.19,109.1,10.79]
[1644525317258,48.5933093,109.19,109.1,17.04]
[1644525317456,7.28949961,109.19,109.1,11.04]
[1644525317660,1.28949961,109.2,109.11,1.78351012]
[1644525317856,1.28949961,109.22,109.12,10.79]
[1644525318062,5.86949961,109.24,109.12,41.0648614]
[1644525318264,1.28949961,109.24,109.13,16.42632747]
[1644525318464,49.75086664,109.24,109.14,10.79]
[1644525318664,1.28949961,109.24,109.17,13.7393]
[1644525318863,1.28949961,109.24,109.17,24.7793]
[1644525319066,6.0,109.24,109.17,24.7793]
[1644525319463,1.28949961,109.26,109.17,24.7793]
[1644525319666,47.52138246,109.25,109.18,46.04182856]
[1644525319864,46.23188285,109.25,109.18,59.78032856]
[1644525320768,46.23188285,109.25,109.17,10.79]
[1644525321065,46.23188285,109.25,109.17,30.5301]
[1644525321268,1.28949961,109.26,109.17,30.7801]
[1644525321567,52.19196484,109.27,109.17,30.7801]
[1644525322189,42.79035976,109.26,109.18,42.01762469]
[1644525322583,42.79035976,109.26,109.18,61.75622469]
[1644525323385,48.79035976,109.26,109.18,61.75622469]
[1644525324588,53.36735976,109.26,109.18,55.75622469]
[1644525324789,53.36735976,109.26,109.18,61.75622469]
[1644525325088,53.36735976,109.26,109.18,13.7386]
[1644525325288,53.36735976,109.26,109.17,10.79]
[1644525325586,66.30685937,109.26,109.15,10.79]
[1644525325789,66.30685937,109.26,109.14,10.79]
[1644525325790,68.53808091,109.26,109.14,10.79]
[1644525326288,66.30685937,109.26,109.15,35.48601289]
[1644525326691,80.04795937,109.26,109.15,41.48601289]
[1644525326889,80.04795937,109.26,109.15,35.48601289]
[1644525327094,82.27918091,109.26,109.15,35.48601289]
[1644525328794,1.28949961,109.25,109.15,35.48601289]
[1644525328991,38.48448061,109.23,109.15,35.48601289]
[1644525329192,39.80687527,109.21,109.15,35.48601289]
[1644525329593,39.80687527,109.21,109.14,10.79]
[1644525330491,39.80687527,109.21,109.15,45.73528273]
[1644525331695,0.48769901,109.16,109.14,10.79]
[1644525332600,0.48769901,109.16,109.15,39.66247922]
[1644525332795,0.48769901,109.16,109.14,10.79]
[1644525332995,0.48769901,109.16,109.13,13.745]
[1644525333195,0.48769901,109.16,109.13,6.0]
[1644525333595,0.48769901,109.16,109.11,16.79]
[1644525333800,0.48769901,109.16,109.12,48.49185905]
[1644525334195,0.48769901,109.16,109.12,54.49185905]
[1644525334394,0.48769901,109.16,109.12,79.02835905]
[1644525334595,0.48769901,109.16,109.12,79.27835905]
[1644525335796,39.79457428,109.21,109.12,79.27835905]
[1644525338295,45.79457428,109.21,109.12,79.27835905]
[1644525340296,1.28949961,109.23,109.12,79.27835905]
[1644525340498,1.28949961,109.24,109.12,144.140999]
[1644525340703,1.28949961,109.24,109.16,13.7376]
[1644525340898,0.03436523,109.25,109.17,10.79]
[1644525341100,1.32386484,109.26,109.17,28.03390125]
[1644525341304,44.18004398,109.26,109.18,38.136097]
[1644525341499,42.89054437,109.26,109.19,10.79]
[1644525341701,44.18004398,109.26,109.19,24.525]
[1644525341903,50.18004398,109.26,109.19,10.79]
[1644525342101,5.86649961,109.25,109.16,10.79]
[1644525342300,1.28949961,109.24,109.16,6.0]
[1644525342500,5.86749961,109.23,109.16,6.0]
[1644525342701,42.45471717,109.22,109.16,6.0]
[1644525342901,42.45471717,109.22,109.14,16.79]
[1644525343103,43.74421678,109.22,109.15,13.7421]
[1644525343303,43.74421678,109.22,109.12,56.6002]
[1644525343502,5.86949961,109.21,109.12,10.79]
[1644525343708,42.89054437,109.2,109.1,43.76091489]
[1644525343903,1.28949961,109.18,109.09,48.6407]
[1644525344106,4.581,109.17,109.09,10.79]
[1644525344304,5.87049961,109.17,109.08,0.024]
[1644525344603,1.28949961,109.15,109.08,0.024]
[1644525344805,1.28949961,109.15,109.06,0.024]
[1644525345003,1.28949961,109.14,109.05,44.86721056]
[1644525345203,38.43757676,109.14,109.05,44.89121056]
[1644525345403,49.33557676,109.14,109.06,0.024]
[1644525345606,1.28949961,109.13,109.05,0.024]
[1644525345810,1.28949961,109.13,109.03,0.024]
[1644525346006,5.87249961,109.13,109.02,0.024]
[1644525346207,1.28949961,109.12,109.02,0.024]
[1644525346406,4.583,109.11,109.0,47.41904078]
[1644525346605,47.79889961,109.12,109.01,0.024]
[1644525346905,46.5094,109.12,109.01,26.34628084]
[1644525347106,46.5094,109.12,109.02,13.24186726]
[1644525347304,1.28949961,109.14,109.03,0.024]
[1644525347507,1.28949961,109.14,109.03,48.18573499]
[1644525347805,1.28949961,109.14,109.04,0.024]
[1644525348006,6.0,109.14,109.04,24.568]
[1644525348308,1.28949961,109.16,109.05,15.0166481]
[1644525348506,40.47955575,109.16,109.06,45.12668912]
[1644525348705,1.28949961,109.16,109.07,0.024]
[1644525348903,1.28949961,109.17,109.07,0.024]
[1644525349105,4.582,109.16,109.07,0.024]
[1644525349304,1.28949961,109.17,109.07,0.024]
[1644525349504,7.28949961,109.17,109.07,0.024]
[1644525349704,37.82154696,109.17,109.07,0.024]
[1644525349904,7.28949961,109.17,109.07,0.024]
[1644525350103,7.28949961,109.17,109.07,13.26586726]
[1644525350306,7.28949961,109.17,109.08,0.024]
[1644525350508,11.87049961,109.17,109.08,0.024]
[1644525350907,36.07072461,109.16,109.08,0.024]
[1644525351108,4.582,109.15,109.08,0.024]
[1644525351307,46.6263604,109.14,109.08,0.024]
[1644525351510,1.28949961,109.15,109.06,34.31268912]
[1644525351708,1.28949961,109.15,109.07,0.024]
[1644525352108,24.65129961,109.16,109.07,0.024]
[1644525352508,37.64046913,109.15,109.07,0.024]
[1644525352908,46.99646913,109.15,109.07,0.024]
[1644525353108,38.92996874,109.15,109.07,0.024]
[1644525353309,37.64046913,109.15,109.07,0.024]
[1644525353908,23.3618,109.16,109.07,0.024]
[1644525354108,27.9438,109.16,109.07,0.024]
[1644525354509,24.65129961,109.16,109.07,0.024]
[1644525354716,4.582,109.15,109.07,0.024]
[1644525355110,42.6824194,109.14,109.07,0.024]
[1644525355311,42.6824194,109.14,109.06,45.10268912]
[1644525355510,54.2554194,109.14,109.06,45.10268912]
[1644525355711,2.23122154,109.13,109.06,34.31268912]
[1644525355926,42.66284214,109.12,109.06,34.31268912]
[1644525356116,4.582,109.13,109.06,34.31268912]
[1644525356312,4.582,109.13,109.04,0.024]
[1644525356514,15.891,109.13,109.04,0.024]
[1644525356713,23.7526,109.12,109.01,30.5719]
[1644525357012,24.5433,109.15,109.03,26.96473792]
[1644525357211,24.5433,109.15,109.04,10.814]
[1644525357412,24.5433,109.15,109.04,57.9158586]
[1644525357612,24.5433,109.15,109.05,1.77478084]
[1644525357811,24.5433,109.15,109.06,0.024]
[1644525358412,49.33793303,109.14,109.05,0.024]
[1644525359614,44.75593303,109.14,109.05,0.024]
[1644525359813,53.09393303,109.14,109.05,0.024]
[1644525360214,59.09393303,109.14,109.05,0.024]
[1644525360412,50.75593303,109.14,109.05,0.024]
[1644525361316,74.91453303,109.14,109.05,0.024]
[1644525361713,4.583,109.13,109.05,0.024]
[1644525361917,37.35212757,109.12,109.05,0.024]
[1644525362517,6.81422154,109.11,109.02,0.024]
[1644525362816,17.85922154,109.11,109.02,0.024]
[1644525363046,22.6422,109.1,108.99,13.761]
[1644525363219,68.11467967,109.1,109.01,45.21040155]
[1644525363422,68.11467967,109.1,109.01,56.00040155]
[1644525363617,22.6422,109.1,109.01,56.02440155]
[1644525363821,22.6422,109.1,109.01,62.02440155]
[1644525364221,22.6422,109.1,109.01,62.27440155]
[1644525364617,22.6422,109.1,109.01,76.03280155]
[1644525365221,111.68149961,109.14,109.01,76.03280155]
[1644525365419,24.8624,109.13,109.02,24.4609]
[1644525365618,63.93968728,109.13,109.03,38.05781028]
[1644525365819,24.8624,109.13,109.03,38.28381028]
[1644525366024,104.392,109.14,109.03,38.28381028]
[1644525366025,1.28949961,109.15,109.04,24.545]
[1644525366229,1.28949961,109.16,109.04,30.819]
[1644525366429,24.1589,109.17,109.04,30.819]
[1644525366430,24.1589,109.17,109.05,26.96473792]
[1644525366627,1.28949961,109.18,109.06,10.814]
[1644525366827,41.33269868,109.17,109.07,44.49170477]
[1644525367029,45.91369868,109.17,109.08,24.539]
[1644525367229,42.62219829,109.17,109.09,42.44612535]
[1644525367430,42.62219829,109.17,109.09,53.23612535]
[1644525367431,41.33269868,109.17,109.09,53.23612535]
[1644525367629,41.33269868,109.17,109.09,52.73612535]
[1644525368032,1.28949961,109.19,109.09,52.73612535]
[1644525368236,5.87049961,109.19,109.09,72.48492535]
[1644525368531,5.87049961,109.19,109.09,66.48492535]
[1644525368731,4.581,109.19,109.09,66.73492535]
[1644525368934,48.56519356,109.19,109.09,72.73492535]
[1644525369133,47.27569395,109.19,109.09,72.73492535]
[1644525369332,36.69469395,109.19,109.09,72.73492535]
[1644525369736,24.25819961,109.2,109.09,72.73492535]
[1644525369933,30.25819961,109.2,109.09,72.73492535]
[1644525370550,1.28949961,109.19,109.09,61.69492535]
[1644525370752,37.91897199,109.18,109.09,47.94612535]
[1644525371250,16.73022154,109.19,109.09,41.94612535]
[1644525371251,35.24750541,109.16,109.09,41.94612535]
[1644525371852,35.24750541,109.16,109.07,10.79]
[1644525372153,35.24750541,109.16,109.04,10.79]
[1644525372154,6.81322154,109.15,109.04,10.79]
[1644525372351,1.28949961,109.14,109.04,6.0]
[1644525372556,4.583,109.13,109.04,6.0]
[1644525372758,16.20849961,109.13,109.01,16.79]
[1644525372954,1.28949961,109.11,109.01,55.73342402]
[1644525373254,41.4576262,109.1,109.01,55.73342402]
[1644525373455,51.31784774,109.1,109.01,55.73342402]
[1644525373954,51.31784774,109.1,109.01,49.73342402]
[1644525374753,49.0866262,109.1,109.01,49.73342402]
[1644525375257,44.05270102,109.08,109.01,49.73342402]
[1644525375653,44.05270102,109.08,109.01,10.79]
[1644525376458,44.05270102,109.08,108.99,10.79]
[1644525376656,6.81622154,109.07,109.0,41.23674141]
[1644525376856,4.585,109.07,109.0,41.23674141]
[1644525377661,43.75998036,109.07,109.0,41.23674141]
[1644525378063,39.17498036,109.07,109.0,41.23674141]
[1644525378963,39.17498036,109.07,109.0,40.73674141]
[1644525379466,39.17498036,109.07,109.0,40.23674141]
[1644525380265,45.17498036,109.07,109.0,40.23674141]
[1644525380464,45.17498036,109.07,108.98,13.7634]
[1644525380764,4.586,109.06,108.97,6.0]
[1644525380965,47.4062019,109.07,108.96,30.444]
[1644525381365,47.4062019,109.07,108.97,40.3427352]
[1644525381965,48.69570151,109.07,108.97,40.3427352]
[1644525382165,2.5004997,109.01,108.97,40.3427352]
[1644525382764,2.5004997,109.01,108.97,54.1084352]
[1644525385367,2.5004997,109.01,108.97,64.8984352]
[1644525386375,2.5004997,109.01,108.97,40.3427352]
[1644525386574,2.5004997,109.01,108.97,46.3427352]
[1644525386778,2.5004997,109.01,108.97,40.3427352]
[1644525387377,2.5004997,109.01,108.94,10.814]
[1644525387577,2.5004997,109.01,108.94,0.024]
[1644525387578,4.588,109.0,108.94,0.024]
[1644525387778,13.792,109.0,108.91,0.024]
[1644525387991,39.67742154,109.0,108.89,0.024]
[1644525388383,36.22593198,108.99,108.88,34.6183441]
[1644525388579,38.40455347,108.97,108.89,0.024]
[1644525388782,34.8769578,108.95,108.88,34.6183441]
[1644525389080,31.38982154,108.99,108.88,34.5943441]
[1644525389281,17.61122154,108.99,108.88,34.5943441]
[1644525389478,17.61122154,108.99,108.89,0.024]
[1644525390080,34.57774817,108.98,108.89,0.024]
[1644525390280,4.589,108.97,108.88,34.6183441]
[1644525390482,38.14369688,108.96,108.89,0.024]
[1644525390681,4.59,108.98,108.88,34.6183441]
[1644525390880,53.2418,109.0,108.88,34.5943441]
[1644525391081,53.2418,109.0,108.88,48.6441441]
[1644525391281,53.2418,109.0,108.89,0.024]
[1644525391481,48.6518,109.0,108.9,10.79]
[1644525391685,35.17376453,109.0,108.91,42.94426177]
[1644525391886,2.5004997,109.01,108.91,53.98426177]
[1644525392082,2.5004997,109.01,108.91,59.98426177]
[1644525392688,2.5004997,109.01,108.92,13.7696]
[1644525392889,42.00398524,109.01,108.93,35.85921498]
[1644525393289,48.00398524,109.01,108.92,13.7936]
[1644525393489,4.588,109.0,108.92,0.024]
[1644525393688,48.00398524,109.01,108.91,0.024]
[1644525394393,48.00398524,109.01,108.91,38.80709301]
[1644525394991,4.588,109.0,108.91,38.80709301]
[1644525395192,46.8397,109.04,108.91,38.80709301]
[1644525395392,5.87849961,109.05,108.92,0.024]
[1644525395596,1.28949961,109.08,108.93,10.79]
[1644525395891,48.11629961,109.1,108.94,0.024]
[1644525396091,40.65596759,109.09,108.95,182.62490407]
[1644525396291,36.06996759,109.09,108.96,134.924]
[1644525396491,40.65596759,109.09,108.97,51.91974033]
[1644525396691,36.06996759,109.09,108.98,0.024]
[1644525396919,39.57359882,109.07,109.0,37.69004038]
[1644525397116,39.57359882,109.07,109.01,10.814]
[1644525397317,6.0,109.09,109.01,10.79]
[1644525397517,1.28949961,109.1,109.01,10.79]
[1644525397716,4.583,109.09,109.01,10.814]
[1644525397917,4.583,109.09,109.01,10.79]
[1644525398321,36.89818468,109.08,109.02,46.30206216]
[1644525398618,1.28949961,109.11,109.02,46.30206216]
[1644525398818,4.583,109.1,109.02,46.30206216]
[1644525399018,4.583,109.1,109.02,0.024]
[1644525399220,11.87249961,109.1,109.0,10.814]
[1644525399421,1.28949961,109.08,109.01,0.024]
[1644525399619,73.6052,109.12,109.0,10.814]
[1644525399620,1.28949961,109.09,109.0,10.814]
[1644525399820,1.28949961,109.09,109.0,10.79]
[1644525400121,41.93019765,109.08,109.01,46.97038656]
[1644525401320,41.93019765,109.08,109.0,10.814]
[1644525401522,41.93019765,109.08,109.0,10.79]
[1644525402420,4.585,109.07,109.0,10.79]
[1644525402620,4.585,109.07,108.99,0.024]
[1644525402822,5.87449961,109.07,108.98,10.79]
[1644525403022,4.585,109.07,108.98,10.814]
[1644525403223,34.32378771,109.06,108.99,38.92740523]
[1644525403428,34.32378771,109.06,108.99,38.95140523]
[1644525405240,34.32378771,109.06,108.99,0.024]
[1644525405429,4.586,109.05,108.96,0.024]
[1644525405628,29.80819961,109.05,108.93,0.024]
[1644525405829,43.57839961,109.05,108.93,0.024]
[1644525406030,1.28949961,109.03,108.93,0.024]
[1644525406231,49.85749069,109.02,108.92,0.024]
[1644525406428,1.28949961,109.01,108.91,45.14526293]
[1644525406628,45.36477016,108.99,108.92,0.024]
[1644525406828,45.36477016,108.99,108.91,45.16926293]
[1644525407229,42.75350372,108.97,108.91,45.16926293]
[1644525407429,42.75350372,108.97,108.9,13.7734]
[1644525408429,42.75350372,108.97,108.9,53.78271998]
[1644525409528,42.75350372,108.97,108.9,40.00931998]
[1644525409730,42.75350372,108.97,108.89,0.024]
[1644525409930,4.59,108.99,108.88,10.814]
[1644525410128,65.4315,109.0,108.89,0.024]
[1644525410628,68.95222115,109.0,108.89,0.024]
[1644525410831,66.72099961,109.0,108.88,0.024]
[1644525411028,42.83210935,108.99,108.88,62.38353911]
[1644525411236,42.83210935,108.99,108.89,0.024]
[1644525412628,71.4315,109.0,108.89,0.024]
[1644525412629,37.84141813,108.97,108.89,0.024]
[1644525412833,37.84141813,108.97,108.9,46.57814209]
[1644525413029,37.84141813,108.97,108.89,0.024]
[1644525413030,4.589,108.96,108.89,0.024]
[1644525413232,4.589,108.96,108.88,0.024]
[1644525413429,4.589,108.96,108.86,10.814]
[1644525414029,48.41764527,108.95,108.86,56.94559455]
[1644525414231,40.92811597,108.93,108.86,56.94559455]
[1644525415031,40.92811597,108.93,108.85,13.7801]
[1644525415335,134.0,108.92,108.82,1.30073056]
[1644525415565,0.45,108.89,108.77,1.30208108]
[1644525415740,0.45,108.89,108.71,225.02454431]
[1644525415741,4.594,108.88,108.71,74.6816131]
[1644525415940,48.0363,108.87,108.71,85.50053946]
[1644525416140,51.72901471,108.86,108.72,72.19625205]
[1644525416343,58.86501471,108.86,108.72,82.98625205]
[1644525416540,58.86501471,108.86,108.72,68.59632829]
[1644525416941,37.93281471,108.86,108.72,68.59632829]
[1644525417141,37.93281471,108.86,108.72,94.12808228]
[1644525417346,48.0363,108.87,108.72,94.12808228]
[1644525417540,81.5385,108.91,108.72,229.02808228]
[1644525417741,81.5385,108.91,108.74,134.9]
[1644525417943,81.5385,108.91,108.78,13.7877]
[1644525418140,81.5385,108.91,108.79,10.79]
[1644525418342,41.5970841,108.9,108.79,50.71071375]
[1644525418542,4.593,108.89,108.79,50.71071375]
[1644525419045,11.24,108.88,108.71,2.5855131]
[1644525419242,56.9296,108.88,108.68,48.7885]
[1644525419443,56.9296,108.88,108.69,18.2394101]
[1644525419643,56.9296,108.88,108.69,31.28129401]
[1644525419848,36.6129786,108.87,108.7,36.20773207]
[1644525420042,47.4029786,108.87,108.71,10.79]
[1644525420242,34.32772735,108.85,108.73,46.6929133]
[1644525420645,45.71094889,108.85,108.73,46.6929133]
[1644525420844,39.01113842,108.83,108.73,46.6929133]
[1644525421650,35.25379226,108.81,108.73,46.6929133]
[1644525422250,39.01113842,108.79,108.73,46.6929133]
[1644525422454,4.597,108.84,108.73,46.6929133]
[1644525423066,13.7982,108.83,108.73,46.6929133]
[1644525423367,4.596,108.82,108.73,46.6929133]
[1644525423665,41.53994003,108.81,108.73,46.6929133]
[1644525423866,4.596,108.84,108.73,46.6929133]
[1644525424467,18.3927,108.84,108.73,46.6929133]
[1644525424871,34.7989839,108.83,108.73,46.6929133]
[1644525425072,4.596,108.82,108.73,46.6929133]
[1644525425270,34.7989839,108.83,108.73,46.6929133]
[1644525426371,35.14176452,108.81,108.73,46.6929133]
[1644525426574,29.309,108.84,108.73,46.6929133]
[1644525427072,13.798,108.83,108.73,46.6929133]
[1644525427273,4.596,108.82,108.73,46.6929133]
[1644525427675,38.25585716,108.81,108.73,46.6929133]
[1644525427972,4.596,108.8,108.73,46.6929133]
[1644525428175,13.7995,108.82,108.73,46.6929133]
[1644525428378,29.4778,108.85,108.73,65.9609133]
[1644525428573,24.3676,108.87,108.73,65.9609133]
[1644525428775,24.3676,108.87,108.73,79.31773894]
[1644525428973,24.3676,108.87,108.73,88.14744766]
[1644525429175,44.10970758,108.86,108.73,88.14744766]
[1644525429378,90.86290758,108.86,108.73,101.94174766]
[1644525429776,90.86290758,108.86,108.73,93.46374766]
[1644525430177,93.09412912,108.86,108.73,66.31262202]
[1644525430377,93.09412912,108.86,108.74,0.024]
[1644525430678,117.67832912,108.86,108.74,0.024]
[1644525430878,115.44710758,108.86,108.74,0.024]
[1644525431078,44.10970758,108.86,108.74,12.60448489]
[1644525431276,39.51470758,108.86,108.75,44.17410029]
[1644525431478,39.51470758,108.86,108.76,10.814]
[1644525431676,39.51470758,108.86,108.77,40.8323951]
[1644525431880,4.595,108.88,108.77,40.8323951]
[1644525432081,246.4867,108.89,108.77,40.8323951]
[1644525432278,248.71792154,108.89,108.78,0.024]
[1644525432478,246.4867,108.89,108.78,0.024]
[1644525432682,129.8394,108.89,108.78,9.909]
[1644525432879,4.594,108.89,108.79,44.91790096]
[1644525433079,4.593,108.92,108.79,55.70790096]
[1644525433280,15.383,108.97,108.8,1.79048489]
[1644525433478,10.79,108.97,108.81,10.814]
[1644525433680,4.591,108.96,108.82,0.024]
[1644525433983,39.22532872,108.95,108.83,10.79]
[1644525434188,4.591,108.94,108.84,38.11451341]
[1644525434378,4.591,108.94,108.85,0.024]
[1644525435381,4.591,108.94,108.86,41.40090205]
[1644525435587,22.7367,108.96,108.86,41.40090205]
[1644525435782,22.7367,108.96,108.86,41.42490205]
[1644525435980,336.8905,108.99,108.86,52.21490205]
[1644525435981,323.1124,108.99,108.86,52.21490205]
[1644525436186,323.1124,108.99,108.87,0.024]
[1644525436384,318.5224,108.99,108.87,10.814]
[1644525436683,147.56311447,108.98,108.88,43.13259553]
[1644525436884,18.3705,108.97,108.89,0.024]
[1644525437082,18.3705,108.97,108.88,0.024]
[1644525437282,5.04,108.97,108.84,10.814]
[1644525437483,4.59,108.97,108.88,0.024]
[1644525437685,4.59,108.97,108.85,0.024]
[1644525437882,35.84083772,108.96,108.85,43.42180083]
[1644525438083,4.591,108.95,108.86,0.024]
[1644525438284,35.66514977,108.94,108.86,0.024]
[1644525438483,35.66514977,108.94,108.84,10.79]
[1644525438484,47.07014977,108.94,108.84,0.024]
[1644525438783,4.591,108.93,108.79,0.024]
[1644525438986,62.5294,108.93,108.83,0.024]
[1644525439184,62.5294,108.93,108.8,0.024]
[1644525439385,35.64565412,108.92,108.8,38.89451787]
[1644525439583,4.593,108.91,108.81,0.024]
[1644525439783,36.98118006,108.9,108.8,38.89451787]
[1644525439986,4.593,108.89,108.8,38.89451787]
[1644525440285,37.28375062,108.88,108.8,38.89451787]
[1644525441485,13.7882,108.91,108.8,38.89451787]
[1644525441683,4.593,108.9,108.8,38.89451787]
[1644525441885,13.7882,108.91,108.8,38.89451787]
[1644525442085,4.593,108.92,108.8,63.47081787]
[1644525442284,89.3345,108.93,108.81,0.024]
[1644525442486,41.36144185,108.92,108.81,10.814]
[1644525442686,41.36144185,108.92,108.82,38.76311077]
[1644525442891,84.7415,108.93,108.82,38.76311077]
[1644525443089,18.374,108.95,108.83,0.024]
[1644525443286,2.23122154,108.96,108.83,0.024]
[1644525443287,4.591,108.96,108.83,10.814]
[1644525443488,4.591,108.96,108.84,0.024]
[1644525443686,114.51378627,108.98,108.85,10.79]
[1644525443887,201.81608627,108.99,108.86,0.024]
[1644525444086,38.79135386,108.97,108.86,56.28768942]
[1644525444287,38.79135386,108.97,108.86,56.26368942]
[1644525444488,38.79135386,108.97,108.86,56.28768942]
[1644525444692,38.79135386,108.97,108.86,70.06638942]
[1644525446690,4.59,108.98,108.86,70.06638942]
[1644525446992,7.20378627,109.01,108.91,13.7697]
[1644525447194,48.2296,109.05,108.92,10.79]
[1644525447195,2.61378627,109.03,108.92,10.79]
[1644525447391,7.20278627,109.05,108.92,10.79]
[1644525447591,2.61378627,109.06,108.93,45.14848747]
[1644525447791,29.61089844,109.05,108.94,10.79]
[1644525447993,29.61089844,109.05,108.95,35.51812817]
[1644525448194,2.61378627,109.07,108.96,10.79]
[1644525448389,116.487,109.08,108.96,10.79]
[1644525448390,2.61378627,109.08,108.96,10.79]
[1644525448592,7.19978627,109.09,108.96,10.79]
[1644525448792,2.61378627,109.1,108.96,10.79]
[1644525448998,4.585,109.09,108.96,10.79]
[1644525449193,4.585,109.09,108.97,42.60835938]
[1644525449393,4.585,109.1,108.98,24.553]
[1644525449599,74.2578,109.12,108.98,24.553]
[1644525449600,76.87158627,109.12,108.98,24.553]
[1644525449897,74.2578,109.12,108.98,24.553]
[1644525450096,76.87158627,109.12,108.98,24.553]
[1644525450295,40.49128307,109.11,108.99,46.21511272]
[1644525450496,40.49128307,109.11,109.0,10.79]
[1644525450694,40.49128307,109.11,109.01,57.1294724]
[1644525450894,42.72250461,109.11,109.01,43.3712724]
[1644525451095,42.72250461,109.11,108.94,33.01540872]
[1644525451096,4.583,109.1,108.99,10.79]
[1644525451296,45.07628307,109.11,109.0,10.79]
[1644525451697,40.49128307,109.11,109.0,8.9482]
[1644525451898,4.583,109.1,109.0,8.9482]
[1644525452099,33.77364761,109.09,109.01,52.3121749]
[1644525452305,33.77364761,109.09,109.0,8.6982]
[1644525452508,4.585,109.08,108.99,10.79]
[1644525453312,40.49128307,109.07,108.96,13.7651]
[1644525453516,4.586,109.06,108.97,36.99932496]
[1644525453715,33.77364761,109.05,108.97,36.99932496]
[1644525453915,6.81722154,109.09,108.97,36.99932496]
[1644525454315,81.011,109.1,108.97,61.55292496]
[1644525454515,81.011,109.1,108.98,4.585]
[1644525454715,4.585,109.11,108.99,10.79]
[1644525454917,43.99321996,109.13,109.0,58.70159994]
[1644525455116,29.2972,109.16,109.0,83.61553669]
[1644525455315,0.45,109.14,109.0,13.71793675]
[1644525455619,5.033,109.13,108.95,24.7617]
[1644525455916,10.79,109.12,108.96,10.79]
[1644525456215,4.585,109.11,108.96,10.79]
[1644525456417,49.7672703,109.1,108.97,36.56579191]
[1644525456615,4.585,109.09,108.97,61.11939191]
[1644525456838,36.33049238,109.08,108.97,61.11939191]
[1644525457342,37.9344383,109.06,108.97,61.11939191]
[1644525457548,4.586,109.05,108.95,13.7663]
[1644525457737,14.836,109.05,108.95,24.5563]
[1644525458140,14.836,109.05,108.95,13.7663]
[1644525458537,4.586,109.05,108.96,51.17032198]
[1644525458737,37.9344383,109.06,108.96,51.17032198]
[1644525459538,4.586,109.08,108.96,51.17032198]
[1644525459738,4.586,109.08,108.96,62.21032198]
[1644525459938,6.0,109.08,108.96,62.21032198]
[1644525460140,10.79,109.1,108.96,62.21032198]